bitfinex-derivatives/quotes_SOLF0:USTF0_20251108
["timestamp","ask_amount","ask_price","bid_price","bid_amount"]
[1762560001036,0.04432276,161.76,161.73,3.1446371]
[1762560002532,0.00432276,161.76,161.73,4.3846371]
[1762560002732,6.94743786,161.85,161.74,3.05]
[1762560003226,1.24,161.84,161.81,3.05]
[1762560003430,1.24,161.87,161.81,3.05]
[1762560003736,1.28296506,161.86,161.82,3.09433024]
[1762560004240,1.28296506,161.86,161.82,8.65903024]
[1762560004432,1.28296506,161.86,161.82,0.04433024]
[1762560004631,1.24,161.84,161.82,0.04433024]
[1762560005930,1.24,161.85,161.82,3.09433024]
[1762560006135,1.28296506,161.86,161.82,3.09433024]
[1762560006943,1.28296506,161.86,161.82,8.65893024]
[1762560007135,1.28296506,161.86,161.83,3.05]
[1762560007739,0.04296506,161.86,161.83,3.05]
[1762560009955,1.24,161.92,161.83,3.05]
[1762560010754,0.04236922,161.89,161.86,3.09118716]
[1762560012447,1.28236922,161.89,161.86,0.04118716]
[1762560013348,1.28236922,161.89,161.86,3.09118716]
[1762560013949,0.04236922,161.89,161.86,3.09118716]
[1762560017955,5.5608,161.94,161.88,3.05]
[1762560018552,5.5602,161.96,161.88,3.05]
[1762560018857,1.28,161.97,161.88,3.05]
[1762560019056,5.60074327,161.94,161.91,3.08918466]
[1762560019359,1.31994327,161.94,161.91,3.08918466]
[1762560020154,0.03994327,161.94,161.91,3.08918466]
[1762560023061,5.60064327,161.94,161.91,3.08918466]
[1762560025252,5.5611,161.93,161.91,3.08918466]
[1762560025955,0.03994327,161.94,161.91,3.08918466]
[1762560027456,1.31994327,161.94,161.91,0.03918466]
[1762560027855,1.31994327,161.94,161.91,3.08918466]
[1762560028072,5.5611,161.93,161.91,3.08918466]
[1762560028960,6.8411,161.93,161.91,0.03918466]
[1762560030762,5.5611,161.93,161.91,3.08918466]
[1762560031062,1.28,161.92,161.91,0.03918466]
[1762560031657,2.52,161.92,161.91,0.03918466]
[1762560031955,1.28,161.9,161.87,3.28]
[1762560032361,5.5627,161.88,161.87,3.28]
[1762560033466,0.04108001,161.89,161.88,3.0]
[1762560040967,0.04108001,161.89,161.87,3.28]
[1762560041266,0.04108001,161.89,161.87,6.28]
[1762560041668,0.04108001,161.89,161.88,3.0]
[1762560043570,1.32,162.01,161.91,3.0]
[1762560044269,1.32,162.0,161.93,3.0]
[1762560044670,1.36714158,161.98,161.95,0.04286604]
[1762560044865,1.3630607,161.98,161.95,0.04422481]
[1762560045267,1.3630607,161.98,161.95,3.04422481]
[1762560046365,1.3630607,161.98,161.96,4.1]
[1762560047061,1.32,161.97,161.96,4.1]
[1762560048673,0.0430607,161.98,161.96,6.98]
[1762560048973,1.3630607,161.98,161.96,4.1]
[1762560050471,6.8799,161.96,161.95,0.00011298]
[1762560050868,8.1199,161.96,161.95,0.00011298]
[1762560051566,6.8799,161.96,161.95,0.00011298]
[1762560055180,8.1199,161.96,161.95,0.00011298]
[1762560056571,6.8799,161.96,161.95,0.00011298]
[1762560058574,1.32,161.97,161.95,0.00011298]
[1762560059171,1.3630607,161.98,161.95,2.88011298]
[1762560062276,1.3630607,161.98,161.95,0.00011298]
[1762560062978,0.0430607,161.98,161.95,0.00011298]
[1762560064975,0.0430607,161.98,161.97,2.95]
[1762560065177,5.557,162.05,161.97,2.95]
[1762560065782,1.32,162.03,161.97,2.95]
[1762560066183,0.0423475,162.02,161.99,2.95]
[1762560067881,1.3623475,162.02,161.99,2.95]
[1762560068588,1.3623475,162.02,161.98,2.99625839]
[1762560069678,0.0423475,162.02,161.98,2.99625839]
[1762560070985,0.0423475,162.02,161.98,8.55535839]
[1762560071186,0.0423475,162.02,161.99,2.95]
[1762560074880,0.0423475,162.02,162.0,2.95]
[1762560075690,1.3623475,162.02,161.98,2.99625839]
[1762560076895,0.0423475,162.02,161.98,2.99625839]
[1762560080101,0.0423475,162.02,162.01,2.95]
[1762560088206,1.32,162.08,162.01,2.95]
[1762560088411,90.1259,162.17,162.01,2.95]
[1762560088412,1.32,162.12,162.01,2.95]
[1762560089311,0.04663156,162.08,162.06,2.95]
[1762560090814,5.60263156,162.08,162.06,2.95]
[1762560092510,6.8663,162.07,162.05,0.04192424]
[1762560092921,1.31,162.06,162.05,0.04192424]
[1762560093118,6.8682,162.02,161.95,2.9]
[1762560093621,1.31,162.02,161.95,2.9]
[1762560094010,0.04719426,162.0,161.98,2.9]
[1762560094908,0.04719426,162.0,161.97,0.0426035]
[1762560094909,1.31,161.99,161.97,0.0426035]
[1762560096220,1.31,161.98,161.97,0.0426035]
[1762560097222,5.5591,161.99,161.97,2.9426035]
[1762560098217,0.04719426,162.0,161.97,2.9426035]
[1762560103022,0.04719426,162.0,161.97,8.69867582]
[1762560103228,1.31,162.08,161.99,3.17]
[1762560103433,5.557,162.05,162.0,3.17]
[1762560103621,1.31,162.12,162.01,3.17]
[1762560104119,5.5567,162.06,162.05,0.04535356]
[1762560105629,6.8667,162.06,162.05,0.04535356]
[1762560106131,8.1067,162.06,162.05,0.04535356]
[1762560110428,1.27,162.01,161.96,3.17]
[1762560110628,1.27,162.01,161.94,5.75607232]
[1762560110826,1.27,162.01,161.93,8.92607232]
[1762560111432,1.31090897,161.99,161.95,0.04054308]
[1762560111634,1.31337576,161.99,161.95,3.20927704]
[1762560112025,5.5594,161.98,161.95,3.20927704]
[1762560115335,0.04337576,161.99,161.95,3.20927704]
[1762560115538,1.31337576,161.99,161.95,3.20927704]
[1762560115926,1.27,161.98,161.95,0.03927704]
[1762560116932,5.5597,161.97,161.95,0.03927704]
[1762560117736,1.27,161.96,161.95,0.03927704]
[1762560120538,5.5624,161.89,161.87,3.37]
[1762560120731,5.5624,161.89,161.86,3.17]
[1762560121632,5.60677252,161.89,161.86,3.21667]
[1762560122132,0.04437252,161.89,161.86,3.21667]
[1762560122530,0.04437252,161.89,161.87,3.06]
[1762560126036,0.04437252,161.89,161.86,0.04667]
[1762560126037,1.31437252,161.89,161.86,0.04667]
[1762560126936,5.5628,161.88,161.86,0.04667]
[1762560127141,1.27,161.87,161.86,0.04667]
[1762560127535,1.27,161.87,161.79,9.01607232]
[1762560127536,1.27,161.86,161.79,3.26]
[1762560127733,1.27,161.86,161.76,5.85477172]
[1762560127734,18.56,161.81,161.64,5.74126143]
[1762560127935,18.56,161.81,161.65,3.06]
[1762560128137,86.5574,161.84,161.65,3.06]
[1762560128438,342.99443143,161.85,161.65,3.06]
[1762560128644,0.04367505,161.76,161.73,0.04696389]
[1762560128834,0.04126934,161.76,161.73,0.04120838]
[1762560129445,16.0,161.75,161.63,3.06]
[1762560129743,16.0,161.75,161.64,3.96]
[1762560129744,4.27431491,161.74,161.64,3.96]
[1762560130243,5.5685,161.71,161.64,3.96]
[1762560130544,0.04266495,161.69,161.66,0.04311381]
[1762560132840,5.5696,161.68,161.66,0.04311381]
[1762560133044,6.8096,161.68,161.66,0.04311381]
[1762560133242,5.5696,161.68,161.66,0.04311381]
[1762560134334,6.8096,161.68,161.66,0.04311381]
[1762560135141,5.5713,161.63,161.59,1.85543329]
[1762560135333,22.83431491,161.73,161.59,1.85543329]
[1762560135536,4.27431491,161.72,161.59,1.85543329]
[1762560135736,4.27431491,161.74,161.59,4.91543329]
[1762560136341,0.0390082,161.68,161.65,0.04031508]
[1762560136537,5.5702,161.67,161.65,0.04031508]
[1762560136744,0.0390082,161.68,161.65,0.04031508]
[1762560139245,5.5703,161.67,161.65,0.04031508]
[1762560140635,0.0390082,161.68,161.65,0.04031508]
[1762560141243,5.5702,161.67,161.65,0.04031508]
[1762560145651,0.0390082,161.68,161.65,0.04031508]
[1762560146351,5.5701,161.67,161.65,0.04031508]
[1762560152757,0.0390082,161.68,161.65,2.97031508]
[1762560153952,5.6087082,161.68,161.65,2.97031508]
[1762560155464,0.0390082,161.68,161.65,2.97031508]
[1762560156057,5.6087082,161.68,161.65,2.97031508]
[1762560156258,0.0390082,161.68,161.65,2.97031508]
[1762560160166,0.0390082,161.68,161.65,0.04031508]
[1762560160560,5.57,161.67,161.65,2.97031508]
[1762560162658,4.47964903,161.66,161.65,2.97031508]
[1762560162857,5.57,161.67,161.65,2.97031508]
[1762560163266,4.48592984,161.66,161.65,2.97031508]
[1762560163954,5.57,161.67,161.65,2.97031508]
[1762560164467,0.0390082,161.68,161.65,2.97031508]
[1762560164666,4.33711331,161.67,161.65,2.97031508]
[1762560164869,0.0390082,161.68,161.65,2.97031508]
[1762560165058,9.90617855,161.67,161.65,2.97031508]
[1762560165259,9.90589105,161.67,161.65,2.97031508]
[1762560165460,5.57,161.67,161.65,2.97031508]
[1762560165662,9.90659065,161.67,161.65,2.97031508]
[1762560166063,5.57,161.67,161.65,2.97031508]
[1762560167373,4.34590562,161.66,161.65,2.97031508]
[1762560168264,4.34590562,161.66,161.65,0.04031508]
[1762560172067,5.57,161.67,161.65,0.04031508]
[1762560176875,5.57,161.67,161.65,3.22031508]
[1762560177075,0.0390082,161.68,161.65,0.04031508]
[1762560177580,5.5701,161.67,161.65,0.04031508]
[1762560178076,5.5701,161.67,161.65,3.22031508]
[1762560178272,0.0390082,161.68,161.65,3.22031508]
[1762560179881,0.0390082,161.68,161.65,0.04031508]
[1762560180474,5.57,161.67,161.65,0.04031508]
[1762560182477,5.5723,161.6,161.59,1.85543329]
[1762560183476,11.142,161.64,161.52,7.70285737]
[1762560183681,0.04274855,161.61,161.46,7.70285737]
[1762560183986,5.55667901,161.6,161.47,2.94]
[1762560184174,5.5751,161.52,161.47,2.94]
[1762560184781,0.04094701,161.51,161.48,0.04428153]
[1762560185682,0.04094701,161.51,161.48,2.98428153]
[1762560186274,0.04094701,161.51,161.48,0.04428153]
[1762560186479,0.04094701,161.51,161.48,2.98428153]
[1762560187681,0.04094701,161.51,161.48,0.04428153]
[1762560187881,0.04094701,161.51,161.48,2.98428153]
[1762560188077,0.04094701,161.51,161.48,0.04428153]
[1762560188678,1.28094701,161.51,161.48,0.04428153]
[1762560189078,0.04094701,161.51,161.48,0.04428153]
[1762560189293,5.5767,161.49,161.48,0.04428153]
[1762560189997,6.8167,161.49,161.48,0.04428153]
[1762560190281,5.5778,161.46,161.4,7.29]
[1762560190678,5.5761,161.51,161.41,2.94]
[1762560191285,0.04746595,161.48,161.44,0.03957158]
[1762560191490,0.04151395,161.48,161.44,0.04412857]
[1762560191985,5.5774,161.47,161.41,2.94]
[1762560192788,5.578,161.46,161.41,2.94]
[1762560193095,0.04151395,161.48,161.42,0.03950092]
[1762560193488,5.61861395,161.48,161.42,0.03950092]
[1762560193790,0.04151395,161.48,161.42,2.97950092]
[1762560197382,0.04151395,161.48,161.42,8.55840092]
[1762560197588,0.04151395,161.48,161.43,2.94]
[1762560198191,0.04151395,161.48,161.44,2.94]
[1762560198899,0.04151395,161.48,161.44,8.5182]
[1762560199093,5.5756,161.53,161.45,2.94]
[1762560200095,0.04031996,161.51,161.48,2.94]
[1762560202887,4.58552432,161.61,161.48,2.94]
[1762560203100,4.58552432,161.63,161.48,2.94]
[1762560203298,4.58552432,161.62,161.48,2.94]
[1762560203502,5.5733,161.59,161.5,2.94]
[1762560203697,4.58552432,161.62,161.5,2.94]
[1762560203891,97.83587861,161.64,161.4,22.91]
[1762560203892,0.04429898,161.58,161.54,2.98649902]
[1762560204094,0.04693725,161.58,161.54,2.98456627]
[1762560206697,79.2,161.64,161.56,2.94]
[1762560207306,79.2,161.64,161.58,2.94]
[1762560207901,0.04741977,161.63,161.6,2.94]
[1762560208107,0.04202526,161.63,161.6,2.98549606]
[1762560208909,0.04202526,161.63,161.6,0.04549606]
[1762560210200,0.04202526,161.63,161.6,2.98549606]
[1762560212906,0.04202526,161.63,161.6,0.00398211]
[1762560213108,5.5724,161.62,161.6,0.00398211]
[1762560213306,4.59775896,161.61,161.6,0.00398211]
[1762560213525,5.83775896,161.61,161.6,0.00398211]
[1762560213712,4.59775896,161.61,161.6,0.00398211]
[1762560214714,5.83775896,161.61,161.6,0.00398211]
[1762560216119,4.59775896,161.61,161.6,0.00398211]
[1762560217620,5.575,161.54,161.5,3.18]
[1762560218120,5.5754,161.53,161.5,3.18]
[1762560218623,5.61807985,161.53,161.5,3.22312357]
[1762560219322,0.04267985,161.53,161.5,3.22312357]
[1762560223821,4.59775896,161.59,161.5,3.22312357]
[1762560224128,4.59775896,161.58,161.52,3.04]
[1762560224421,11.1444,161.63,161.52,3.04]
[1762560224422,4.59775896,161.57,161.52,3.04]
[1762560224725,0.04614001,161.56,161.53,0.0464467]
[1762560225225,0.04614001,161.56,161.53,3.0864467]
[1762560226628,4.64389897,161.56,161.53,3.0864467]
[1762560227129,5.62064001,161.56,161.53,3.0864467]
[1762560228029,10.21839897,161.56,161.53,3.0864467]
[1762560228325,5.62064001,161.56,161.53,3.0864467]
[1762560229023,5.5747,161.55,161.53,3.0864467]
[1762560230114,0.04614001,161.56,161.53,3.0864467]
[1762560235233,5.5737,161.58,161.53,3.0864467]
[1762560235434,5.5737,161.58,161.54,3.04]
[1762560236321,5.61739355,161.58,161.54,3.04]
[1762560237233,5.61739355,161.58,161.55,3.04]
[1762560237434,0.04369355,161.58,161.53,3.0864467]
[1762560237636,0.04369355,161.58,161.53,0.0464467]
[1762560237936,5.5748,161.55,161.53,0.0464467]
[1762560241734,0.04369355,161.58,161.53,0.0464467]
[1762560241939,5.5741,161.57,161.53,0.0464467]
[1762560242145,0.04369355,161.58,161.53,2.9664467]
[1762560243435,0.04369355,161.58,161.55,2.92]
[1762560247544,0.04369355,161.58,161.55,8.4945]
[1762560247745,0.04369355,161.58,161.55,2.92]
[1762560247940,86.84991715,161.7,161.53,0.0464467]
[1762560247941,5.62567711,161.69,161.53,0.0464467]
[1762560248242,79.24,161.7,161.53,0.0464467]
[1762560248243,79.24,161.7,161.58,2.92]
[1762560248640,79.24,161.7,161.6,2.92]
[1762560248941,0.04730943,161.67,161.63,0.04685317]
[1762560249140,0.04730943,161.67,161.63,2.96685317]
[1762560250045,0.04730943,161.67,161.63,0.04685317]
[1762560251351,5.5713,161.65,161.63,0.04685317]
[1762560253036,5.5728,161.61,161.53,2.92]
[1762560253944,5.572,161.63,161.54,2.92]
[1762560254250,0.04758455,161.59,161.56,2.92]
[1762560255151,97.98901715,161.7,161.56,2.92]
[1762560255152,5.5714,161.65,161.56,2.92]
[1762560255357,5.5714,161.65,161.57,2.92]
[1762560255853,5.5714,161.65,161.59,2.92]
[1762560256045,84.86567711,161.7,161.59,2.92]
[1762560256247,0.04323899,161.66,161.63,0.04289215]
[1762560256547,5.61752533,161.66,161.63,2.9599674]
[1762560258152,5.61752533,161.66,161.63,0.0399674]
[1762560258153,5.5714,161.65,161.63,0.0399674]
[1762560260560,0.04662533,161.66,161.63,0.0399674]
[1762560262482,5.5713,161.65,161.63,0.0399674]
[1762560267264,0.04662533,161.66,161.63,2.9599674]
[1762560273060,0.04662533,161.66,161.63,8.5316674]
[1762560273256,0.04662533,161.66,161.63,2.9599674]
[1762560274867,0.04662533,161.66,161.63,0.0399674]
[1762560275064,5.5713,161.65,161.63,0.0399674]
[1762560275365,5.5713,161.65,161.63,3.8699674]
[1762560276074,0.04662533,161.66,161.63,7.0099674]
[1762560276276,0.04662533,161.66,161.64,3.14]
[1762560277074,5.62567711,161.76,161.65,3.14]
[1762560277463,5.62567711,161.76,161.66,3.14]
[1762560277664,5.5682,161.74,161.66,3.14]
[1762560278073,219.17829762,161.77,161.68,3.17977809]
[1762560278074,0.0428098,161.72,161.68,3.17977809]
[1762560279468,0.0428098,161.72,161.69,3.14]
[1762560280276,0.0428098,161.72,161.7,3.14]
[1762560281967,0.0428098,161.72,161.68,0.03977809]
[1762560281968,0.0428098,161.72,161.68,2.92977809]
[1762560283874,5.6122098,161.72,161.68,2.92977809]
[1762560284172,0.0428098,161.72,161.68,0.03977809]
[1762560284874,5.5701,161.7,161.68,0.03977809]
[1762560285471,5.6122098,161.72,161.68,2.92977809]
[1762560285676,5.6122098,161.72,161.68,0.03977809]
[1762560286283,5.6122098,161.72,161.68,2.92977809]
[1762560287077,0.0428098,161.72,161.68,2.92977809]
[1762560287277,0.0428098,161.72,161.68,0.03977809]
[1762560287475,0.0428098,161.72,161.68,2.92977809]
[1762560288475,5.6117098,161.72,161.68,0.03977809]
[1762560289082,5.5692,161.71,161.68,0.03977809]
[1762560289274,0.0428098,161.72,161.68,0.03977809]
[1762560289982,5.6118098,161.72,161.68,0.03977809]
[1762560290279,5.6118098,161.72,161.68,2.92977809]
[1762560290780,0.0428098,161.72,161.68,2.92977809]
[1762560291182,5.5692,161.71,161.68,0.03977809]
[1762560291580,5.5692,161.71,161.68,2.92977809]
[1762560292881,0.0428098,161.72,161.68,2.92977809]
[1762560296287,5.6117098,161.72,161.68,2.92977809]
[1762560297881,5.5692,161.71,161.68,2.92977809]
[1762560298081,0.0428098,161.72,161.68,0.03977809]
[1762560298481,0.0428098,161.72,161.68,2.92977809]
[1762560302389,0.0428098,161.72,161.68,0.03977809]
[1762560302575,5.5696,161.7,161.68,0.03977809]
[1762560303483,5.6117098,161.72,161.68,2.93977809]
[1762560303679,0.0428098,161.72,161.68,2.93977809]
[1762560306187,5.6118098,161.72,161.68,2.93977809]
[1762560306398,0.0428098,161.72,161.68,2.93977809]
[1762560306684,5.6117098,161.72,161.68,2.93977809]
[1762560306906,0.0428098,161.72,161.68,2.93977809]
[1762560307294,5.6117098,161.72,161.68,2.93977809]
[1762560307684,86.6686098,161.72,161.57,2.9]
[1762560307887,5.62567711,161.7,161.57,2.9]
[1762560308588,16.76457711,161.7,161.57,2.9]
[1762560308795,0.04056464,161.65,161.62,0.04000407]
[1762560309190,5.5715,161.64,161.62,0.04000407]
[1762560313490,0.04056464,161.65,161.62,2.94000407]
[1762560317199,0.04056464,161.65,161.62,0.04000407]
[1762560317400,0.04056464,161.65,161.62,2.94000407]
[1762560317906,5.5692,161.71,161.62,2.94000407]
[1762560318090,5.5692,161.71,161.62,2.9]
[1762560318294,6.70186037,161.77,161.64,2.9]
[1762560318805,6.70186037,161.77,161.69,0.04290586]
[1762560318806,0.04691353,161.72,161.69,0.04290586]
[1762560319497,0.04691353,161.72,161.69,2.94290586]
[1762560319697,5.61581353,161.72,161.69,0.04290586]
[1762560319898,0.04691353,161.72,161.69,2.94290586]
[1762560325520,271.11671955,161.79,161.69,2.94290586]
[1762560325716,271.11671955,161.79,161.69,2.9]
[1762560326619,0.0443105,161.76,161.73,2.9]
[1762560326823,270.14584972,161.79,161.73,2.9]
[1762560327023,5.5675,161.76,161.73,2.9]
[1762560327421,270.14584972,161.79,161.73,2.9]
[1762560327725,0.04050701,161.78,161.73,2.9]
[1762560329028,5.5676,161.76,161.73,2.9]
[1762560330523,5.60730701,161.78,161.73,2.9]
[1762560337230,0.04050701,161.78,161.73,2.9]
[1762560338227,11.1269,161.88,161.73,2.9]
[1762560338425,12.20243468,161.88,161.73,2.9]
[1762560338947,1.07553468,161.88,161.76,3.03]
[1762560339328,5.5651,161.83,161.8,0.03963826]
[1762560339633,5.5651,161.83,161.8,3.06963826]
[1762560339819,0.04357624,161.84,161.8,3.06963826]
[1762560341431,0.04357624,161.84,161.8,0.03963826]
[1762560342332,5.60837624,161.84,161.8,3.00963826]
[1762560344032,5.565,161.83,161.8,3.00963826]
[1762560344830,0.04357624,161.84,161.8,3.00963826]
[1762560347734,0.04357624,161.84,161.82,2.97]
[1762560350432,0.04357624,161.84,161.83,2.97]
[1762560351937,5.5635,161.88,161.83,2.97]
[1762560352232,84.7227,161.9,161.83,2.97]
[1762560352635,84.7227,161.9,161.84,2.97]
[1762560353029,84.7227,161.9,161.86,2.97]
[1762560354425,79.16,161.9,161.85,0.04025779]
[1762560354622,79.16,161.9,161.85,3.01025779]
[1762560355639,84.7228,161.9,161.85,3.01025779]
[1762560356834,79.16,161.9,161.85,3.01025779]
[1762560357840,16.79217159,161.98,161.85,3.01025779]
[1762560358040,16.79217159,161.98,161.9,0.04071383]
[1762560358241,1.07487027,161.95,161.9,0.04071383]
[1762560358433,16.79217159,161.98,161.9,0.04071383]
[1762560358629,5.67227159,161.98,161.9,0.04071383]
[1762560358830,1.07483708,161.96,161.9,0.04071383]
[1762560359140,5.67227159,162.01,161.91,0.0425967]
[1762560359331,1.0747209,161.98,161.94,0.04234542]
[1762560360136,5.5607,161.96,161.94,0.04234542]
[1762560360563,6.8007,161.96,161.94,0.04234542]
[1762560360840,1.24,161.96,161.87,2.97]
[1762560361036,1.0747209,161.98,161.87,2.97]
[1762560361258,1.0747209,161.98,161.83,2.97]
[1762560361541,5.67227159,161.96,161.83,2.97]
[1762560361748,0.04676145,161.91,161.88,0.04544]
[1762560362336,5.563,161.89,161.88,0.04544]
[1762560369349,5.563,161.89,161.8,2.95]
[1762560369350,1.24,161.89,161.8,2.95]
[1762560369553,18.57,161.93,161.8,2.95]
[1762560369554,5.67227159,161.9,161.8,2.95]
[1762560369849,5.5651,161.83,161.8,2.95]
[1762560370250,5.60755909,161.83,161.8,2.99115494]
[1762560370448,0.04245909,161.83,161.8,2.99115494]
[1762560372451,5.67227159,161.93,161.8,2.99115494]
[1762560372655,5.67227159,161.94,161.8,2.95]
[1762560373457,0.04620899,161.89,161.85,2.99443246]
[1762560373751,0.04047878,161.89,161.85,2.99443246]
[1762560374058,12.1948209,161.98,161.86,2.95]
[1762560374059,5.67227159,161.96,161.86,2.95]
[1762560374251,8.68463805,161.98,161.86,2.95]
[1762560374252,5.67227159,161.97,161.86,2.95]
[1762560374658,5.6972856,161.97,161.86,2.95]
[1762560374952,5.6972856,161.97,161.9,0.04284169]
[1762560375155,5.6972856,161.97,161.9,2.99284169]
[1762560375454,1.0747209,161.98,161.9,2.99284169]
[1762560375849,5.5604,161.97,161.9,2.99284169]
[1762560377154,1.0747209,161.98,161.9,2.99284169]
[1762560378153,5.6972856,161.99,161.9,8.55524169]
[1762560378453,6.77192353,162.0,161.91,2.95]
[1762560378755,6.77192353,162.0,161.94,0.04549181]
[1762560378959,5.5596,161.99,161.94,0.04549181]
[1762560379961,5.6972856,162.01,161.94,0.04549181]
[1762560380160,85.87182398,162.02,161.94,0.04549181]
[1762560380548,80.17453838,162.02,161.94,0.04549181]
[1762560380751,80.17453838,162.02,161.94,2.99549181]
[1762560381463,79.1,162.02,161.94,2.99549181]
[1762560382157,79.1,162.02,161.96,2.95]
[1762560382366,79.1,162.02,161.98,2.95]
[1762560382564,5.6972856,162.09,161.98,2.99681316]
[1762560382749,11.2536856,162.09,162.02,0.0404172]
[1762560382957,5.5564,162.09,162.04,0.04229139]
[1762560383358,11.2527856,162.11,162.04,0.04229139]
[1762560383660,5.5555,162.11,162.04,0.04229139]
[1762560384060,1.07390835,162.12,162.04,0.04229139]
[1762560384652,1.07390835,162.12,162.04,2.99229139]
[1762560384858,5.5548,162.13,162.04,2.99229139]
[1762560385063,392.91716543,162.14,162.04,2.99229139]
[1762560385358,392.91716543,162.14,162.07,0.03987812]
[1762560385558,5.555,162.12,162.09,0.04666539]
[1762560385763,392.91716543,162.14,162.09,0.04666539]
[1762560385964,391.84342276,162.14,162.09,0.04666539]
[1762560386361,5.6972856,162.12,161.87,7.66380491]
[1762560386566,5.6972856,162.12,161.79,86.5868]
[1762560386567,5.6972856,162.06,161.81,7.66380491]
[1762560386761,5.5582,162.03,161.82,7.66380491]
[1762560386959,5.5582,162.03,161.92,5.5617]
[1762560387366,0.04675316,161.99,161.96,0.03906637]
[1762560391156,0.04675316,161.99,161.96,2.98906637]
[1762560393172,0.04675316,161.99,161.97,3.07]
[1762560393564,419.0,162.09,161.96,0.03906637]
[1762560393870,5.6972856,162.11,161.98,3.07]
[1762560394367,5.5558,162.1,162.0,3.07]
[1762560394573,5.5558,162.1,162.03,0.04510646]
[1762560395272,417.18443447,162.14,162.03,0.04510646]
[1762560395477,392.91714887,162.14,162.07,0.04522272]
[1762560395770,5.5552,162.12,162.09,0.04722403]
[1762560395970,392.91714887,162.14,161.99,3.07]
[1762560396570,5.5556,162.11,162.0,8.629]
[1762560396963,0.03941287,162.07,162.04,0.04039414]
[1762560403278,0.03941287,162.07,162.04,2.91039414]
[1762560404081,0.03941287,162.07,162.04,0.04039414]
[1762560404779,0.03941287,162.07,162.04,2.91039414]
[1762560405977,0.03941287,162.07,162.04,0.04039414]
[1762560406377,0.03941287,162.07,161.85,11.49570737]
[1762560406378,1.24,162.06,161.85,2.87]
[1762560406678,5.6972856,162.11,161.82,18.57249832]
[1762560406679,24.2672856,162.09,161.93,2.87]
[1762560407278,24.2672856,162.09,161.99,0.04009552]
[1762560407474,0.04641407,162.03,162.02,0.04051437]
[1762560407783,0.04509865,162.04,161.93,2.87]
[1762560407984,5.5583,162.03,161.93,2.87]
[1762560408779,0.03926814,162.0,161.96,0.04497129]
[1762560409179,0.03926814,162.0,161.96,2.91497129]
[1762560411984,5.6972856,162.13,161.96,2.91497129]
[1762560412204,5.5563,162.09,162.0,2.87]
[1762560413075,0.04232306,162.06,162.03,0.04122507]
[1762560413801,0.04232306,162.06,162.03,2.91122507]
[1762560415584,0.04232306,162.06,162.04,2.87]
[1762560419887,0.04232306,162.06,162.04,8.4276]
[1762560420093,392.91714887,162.14,162.05,2.87]
[1762560420790,391.84342276,162.14,162.07,2.87]
[1762560421182,0.04461928,162.12,162.09,2.9134199]
[1762560421382,79.08,162.17,162.09,2.87]
[1762560421581,84.7772856,162.17,162.09,2.87]
[1762560421779,0.04484696,162.15,162.11,0.04340567]
[1762560422788,0.04484696,162.15,162.11,3.06340567]
[1762560426291,0.04484696,162.15,162.11,0.04340567]
[1762560427789,0.04484696,162.15,162.06,3.02]
[1762560428091,85.85370348,162.17,162.06,8.5775]
[1762560428281,5.5546,162.15,162.06,8.5775]
[1762560428684,0.04740648,162.12,162.09,0.04275442]
[1762560429280,0.04740648,162.12,162.09,3.06275442]
[1762560432487,0.04740648,162.12,162.09,0.04275442]
[1762560432889,5.5563,162.1,162.09,0.04275442]
[1762560433096,5.74768193,162.12,161.96,3.02]
[1762560433296,5.70027545,162.12,161.96,3.02]
[1762560433697,5.70027545,162.12,162.01,3.02]
[1762560433998,0.04376101,162.08,162.05,0.04534966]
[1762560436896,0.04376101,162.08,162.01,3.02]
[1762560436897,0.04376101,162.08,161.97,3.02]
[1762560437103,5.70027545,162.08,161.97,3.02]
[1762560437793,5.70027545,162.1,161.97,3.02]
[1762560438015,5.70027545,162.1,162.02,3.02]
[1762560438016,0.04218727,162.04,162.02,3.02]
[1762560438198,0.04718523,162.05,162.02,3.02]
[1762560438395,0.04287406,162.05,162.02,3.06608686]
[1762560438797,0.04287406,162.05,162.02,0.04608686]
[1762560439397,0.04287406,162.05,162.03,3.02]
[1762560439697,0.04287406,162.05,162.02,0.04608686]